bitfinex-derivatives/quotes_BTCF0:USTF0_20251030
["timestamp","ask_amount","ask_price","bid_price","bid_amount"]
[1761827368146,0.88048284,108780.0,108770.0,0.02673776]
[1761827368447,0.5303055,108780.0,108770.0,0.02673776]
[1761827368645,0.86348274,108780.0,108770.0,0.02673776]
[1761827368956,0.05857,108760.0,108750.0,0.0329071]
[1761827369163,1.13786734,108760.0,108750.0,0.0329071]
[1761827369344,0.04488,108750.0,108740.0,0.3937071]
[1761827369645,0.03590937,108750.0,108740.0,0.4378271]
[1761827369848,0.03598341,108750.0,108740.0,0.4378271]
[1761827370240,0.03398341,108750.0,108740.0,0.4378271]
[1761827370535,0.03398341,108750.0,108740.0,0.3937071]
[1761827370735,0.38416075,108750.0,108740.0,0.4378271]
[1761827371050,0.38516075,108750.0,108740.0,0.0359071]
[1761827371239,0.83792155,108750.0,108740.0,0.0359071]
[1761827371442,0.88792155,108750.0,108740.0,0.04920717]
[1761827371637,0.88792155,108750.0,108730.0,1.53290262]
[1761827371638,0.91792155,108750.0,108730.0,1.53290262]
[1761827371848,0.40874734,108740.0,108730.0,1.53290262]
[1761827372041,0.05857,108740.0,108730.0,1.53290262]
[1761827372549,0.07857,108740.0,108730.0,1.53290262]
[1761827372946,0.42874734,108740.0,108730.0,1.53290262]
[1761827373144,0.78954734,108740.0,108730.0,0.03290262]
[1761827373345,0.38493212,108740.0,108710.0,0.50014252]
[1761827373545,0.00106478,108740.0,108730.0,0.40492]
[1761827373744,0.05694478,108740.0,108730.0,0.04412]
[1761827373951,0.05694478,108740.0,108730.0,0.40492]
[1761827373952,0.04694478,108740.0,108730.0,0.40492]
[1761827374355,0.00206478,108740.0,108730.0,0.4968976]
[1761827374538,0.40353,108770.0,108760.0,0.04599]
[1761827374744,0.42353,108770.0,108760.0,0.04599]
[1761827374946,0.75189,108770.0,108760.0,0.04599]
[1761827375144,0.72388,108780.0,108770.0,0.04599]
[1761827375445,0.41722,108800.0,108790.0,0.04599]
[1761827375653,0.04273,108790.0,108780.0,0.02328]
[1761827375842,0.04273,108790.0,108760.0,0.04931252]
[1761827375843,0.04273,108770.0,108760.0,0.04931252]
[1761827376039,0.04273,108760.0,108750.0,0.40679]
[1761827377139,0.02103,108760.0,108750.0,0.40679]
[1761827377543,0.3608,108770.0,108760.0,0.04599]
[1761827377544,0.40353,108770.0,108760.0,0.04599]
[1761827378052,0.05863,108760.0,108750.0,0.40779]
[1761827378244,0.64876042,108760.0,108750.0,0.001]
[1761827378640,0.64976042,108760.0,108750.0,0.002]
[1761827379848,0.42453,108760.0,108750.0,0.04699]
[1761827380053,0.0929522,108760.0,108750.0,0.04699]
[1761827380248,0.1356822,108760.0,108750.0,0.04699]
[1761827380553,0.04273,108790.0,108780.0,0.03687]
[1761827380748,0.04273,108790.0,108780.0,0.42038]
[1761827380950,0.34943,108810.0,108800.0,0.05958]
[1761827381152,0.58046042,108810.0,108800.0,0.42038]
[1761827381351,0.04273,108800.0,108790.0,0.3608]
[1761827381560,0.04273,108800.0,108790.0,0.40679]
[1761827381857,0.05273,108800.0,108790.0,0.40679]
[1761827382443,0.53773042,108810.0,108790.0,0.4987169]
[1761827382754,0.57013042,108830.0,108800.0,0.5122984]
[1761827382950,0.04273,108830.0,108820.0,0.42038]
[1761827383149,0.32868,108840.0,108820.0,0.42038]
[1761827383350,0.58074042,108840.0,108830.0,0.3608]
[1761827383548,0.58074042,108840.0,108830.0,0.40679]
[1761827383757,0.37141,108840.0,108830.0,0.3608]
[1761827383957,0.58074042,108840.0,108830.0,0.3608]
[1761827384158,0.02103,108830.0,108820.0,0.42038]
[1761827384355,0.26206042,108830.0,108820.0,0.39867]
[1761827384549,0.05273,108830.0,108820.0,0.42138]
[1761827384749,0.04273,108830.0,108820.0,0.42038]
[1761827384950,0.02003,108830.0,108820.0,0.42038]
[1761827385149,0.59474042,108840.0,108830.0,0.02328]
[1761827385447,0.014,108840.0,108830.0,0.40679]
[1761827386359,0.03703,108840.0,108830.0,0.40679]
[1761827386657,0.02303,108840.0,108830.0,0.40679]
[1761827387562,0.28351042,108840.0,108830.0,0.001]
[1761827387760,0.85364084,108840.0,108830.0,0.001]
[1761827387950,0.97640084,108840.0,108830.0,0.001]
[1761827388351,0.76431042,108840.0,108830.0,0.001]
[1761827388560,0.95431042,108840.0,108830.0,0.001]
[1761827388954,0.61953,108840.0,108830.0,0.001]
[1761827389156,0.82886042,108840.0,108830.0,0.001]
[1761827389361,0.79638042,108840.0,108830.0,0.3618]
[1761827389552,0.40705,108840.0,108830.0,0.40779]
[1761827390763,0.36535,108840.0,108830.0,0.40779]
[1761827391160,0.34432,108840.0,108830.0,0.40779]
[1761827393856,0.20933042,108870.0,108840.0,0.1054739]
[1761827394164,0.89841042,108890.0,108860.0,0.42038]
[1761827394361,0.04273,108880.0,108870.0,0.04599]
[1761827394958,0.02103,108870.0,108860.0,0.39767]
[1761827395161,0.04273,108860.0,108850.0,0.38408]
[1761827395454,0.04273,108860.0,108850.0,0.40679]
[1761827395660,0.23103042,108860.0,108840.0,0.37539]
[1761827395856,0.04273,108850.0,108840.0,0.42138]
[1761827396264,0.04273,108860.0,108850.0,0.02328]
[1761827396663,0.04273,108860.0,108850.0,0.38408]
[1761827396964,0.05273,108860.0,108850.0,0.38408]
[1761827397159,0.05273,108860.0,108850.0,0.40679]
[1761827397361,0.25206042,108860.0,108850.0,0.38508]
[1761827397561,0.25206042,108860.0,108850.0,0.40779]
[1761827397562,0.05273,108860.0,108850.0,0.40779]
[1761827397763,0.05573,108860.0,108850.0,0.40879]
[1761827398863,0.013,108860.0,108850.0,0.40879]
[1761827399066,0.03403,108860.0,108850.0,0.40879]
[1761827399271,0.28506042,108860.0,108850.0,0.002]
[1761827399475,0.65388042,108860.0,108850.0,0.002]
[1761827399663,0.77275,108860.0,108850.0,0.002]
[1761827399967,0.40393,108860.0,108850.0,0.04799]
[1761827400171,0.40393,108860.0,108850.0,0.40879]
[1761827400870,0.40393,108860.0,108850.0,0.3628]
[1761827401065,0.62404042,108860.0,108850.0,0.3628]
[1761827401264,0.62128042,108860.0,108850.0,0.3628]
[1761827401566,0.40393,108860.0,108850.0,0.002]
[1761827401761,0.033,108860.0,108850.0,0.41155]
[1761827401969,0.3608,108880.0,108850.0,0.70999652]
[1761827402174,0.04273,108870.0,108860.0,0.42038]
[1761827402366,0.26206042,108870.0,108860.0,0.42038]
[1761827402677,0.26206042,108870.0,108860.0,0.05958]
[1761827402869,0.26206042,108870.0,108860.0,0.42038]
[1761827403165,0.59026042,108870.0,108860.0,0.05958]
[1761827403470,0.05075,108860.0,108850.0,0.002]
[1761827403665,0.77088042,108860.0,108850.0,0.002]
[1761827403866,0.87088042,108860.0,108850.0,0.002]
[1761827404163,0.04273,108830.0,108820.0,0.39767]
[1761827404377,0.26206042,108830.0,108820.0,0.3608]
[1761827404672,0.04273,108820.0,108810.0,0.40679]
[1761827404873,0.27206042,108820.0,108810.0,0.04599]
[1761827405074,0.27106042,108820.0,108810.0,0.04599]
[1761827405467,0.06173,108820.0,108810.0,0.04599]
[1761827405864,0.06173,108820.0,108800.0,0.3966]
[1761827405865,0.02116,108810.0,108800.0,0.3966]
[1761827406064,0.04342,108800.0,108790.0,0.3608]
[1761827406270,0.04342,108800.0,108790.0,0.40539]
[1761827406572,0.26175042,108800.0,108790.0,0.40539]
[1761827406778,0.26275042,108800.0,108790.0,0.04459]
[1761827407077,0.26275042,108800.0,108780.0,0.05818]
[1761827407078,0.04342,108790.0,108780.0,0.05818]
[1761827407370,0.05242,108790.0,108780.0,0.05818]
[1761827408275,0.05042,108790.0,108780.0,0.05818]
[1761827408475,0.89829042,108810.0,108790.0,0.04459]
[1761827408774,0.95207,108810.0,108800.0,0.05806]
[1761827409777,1.16140042,108810.0,108800.0,0.05806]
[1761827409972,0.59127,108810.0,108800.0,0.05806]
[1761827410175,0.04,108810.0,108800.0,0.05806]
[1761827410478,0.04311,108810.0,108800.0,0.41886]
[1761827410775,0.3282,108820.0,108810.0,0.04459]
[1761827410776,0.37131,108820.0,108810.0,0.04459]
[1761827410968,0.62064042,108820.0,108810.0,0.40539]
[1761827411278,0.04311,108810.0,108800.0,0.03373493]
[1761827411471,0.63324042,108810.0,108800.0,0.002]
[1761827411878,0.27244042,108810.0,108800.0,0.002]
[1761827412168,0.02,108810.0,108800.0,0.06006]
[1761827412372,0.02,108810.0,108800.0,0.41986]
[1761827412577,0.3282,108820.0,108810.0,0.04459]
[1761827412778,0.3282,108820.0,108810.0,0.43812493]
[1761827412978,0.59064042,108820.0,108810.0,0.03273493]
[1761827413276,0.3608,108830.0,108820.0,0.04459]
[1761827413478,0.3608,108830.0,108820.0,0.41886]
[1761827413479,0.3282,108830.0,108820.0,0.41886]
[1761827414072,0.3282,108830.0,108820.0,0.45159493]
[1761827414273,0.3282,108840.0,108830.0,0.04459]
[1761827414475,0.3682,108840.0,108830.0,0.40539]
[1761827415485,0.61402042,108860.0,108850.0,0.02305]
[1761827415671,1.16222042,108860.0,108850.0,0.02305]
[1761827415871,0.26389,108860.0,108850.0,0.04561]
[1761827416178,0.04389,108850.0,108840.0,0.45312493]
[1761827416388,0.73289,108860.0,108850.0,0.04561]
[1761827416678,0.61142042,108860.0,108850.0,0.02305]
[1761827417083,0.40209,108860.0,108850.0,0.02305]
[1761827417381,0.61142042,108860.0,108850.0,0.04561]
[1761827418384,0.61542042,108860.0,108850.0,0.04561]
[1761827419181,0.01,108860.0,108850.0,0.40641]
[1761827419393,0.01,108860.0,108850.0,0.64847535]
[1761827419585,0.01,108860.0,108850.0,0.74035235]
[1761827419775,0.01,108860.0,108850.0,0.43914493]
[1761827420078,0.01,108860.0,108850.0,0.44190493]
[1761827420287,0.68896,108890.0,108880.0,0.05959]
[1761827420472,0.57013042,108900.0,108880.0,0.05959]
[1761827420473,0.3608,108900.0,108880.0,0.42039]
[1761827420675,0.41374382,108900.0,108890.0,0.04561]
[1761827420882,0.00905382,108900.0,108890.0,0.61574042]
[1761827421085,0.57815042,108940.0,108900.0,0.01398]
[1761827421278,0.53749042,108930.0,108910.0,0.3608]
[1761827421479,0.53749042,108930.0,108920.0,0.38385]
[1761827421480,0.84138042,108930.0,108920.0,0.38385]
[1761827421682,0.3608,108950.0,108920.0,0.42039]
[1761827421683,0.57013042,108950.0,108920.0,0.42039]
[1761827421878,0.21,108950.0,108930.0,0.3608]
[1761827422075,0.21,108950.0,108940.0,0.05959]
[1761827422482,0.21,108950.0,108940.0,0.42039]
[1761827422678,0.23194,108950.0,108940.0,0.42039]
[1761827422990,0.04389,108930.0,108920.0,0.01398]
[1761827423287,0.61402042,108950.0,108940.0,0.02305]
[1761827423480,0.53469,108950.0,108930.0,0.3608]
[1761827423679,0.74402042,108950.0,108940.0,0.05959]
[1761827424280,0.48469,108950.0,108940.0,0.05959]
[1761827424485,0.69702042,108950.0,108940.0,0.05959]
[1761827424679,0.38622042,108950.0,108940.0,0.05959]
[1761827424981,0.38622042,108950.0,108940.0,0.03703]
[1761827425177,0.02194,108940.0,108930.0,0.40641]
[1761827425374,0.27322042,108940.0,108930.0,0.40641]
[1761827425580,0.04389,108920.0,108910.0,0.3608]
[1761827425788,0.25322042,108920.0,108910.0,0.3608]
[1761827425988,0.26322042,108920.0,108910.0,0.3608]
[1761827426292,0.57013042,108930.0,108920.0,0.05959]
[1761827426487,0.27322042,108930.0,108920.0,0.05959]
[1761827426695,0.06389,108930.0,108920.0,0.02305]
[1761827426995,0.27322042,108930.0,108920.0,0.05959]
[1761827427183,0.04389,108920.0,108910.0,0.38385]
[1761827427389,0.04389,108910.0,108900.0,0.37478]
[1761827427690,0.27322042,108910.0,108900.0,0.37478]
[1761827427874,0.04389,108900.0,108890.0,0.40641]
[1761827428189,0.27322042,108900.0,108890.0,0.3608]
[1761827428482,0.27322042,108900.0,108890.0,0.38385]
[1761827428674,0.3608,108910.0,108890.0,0.40641]
[1761827428881,0.001,108920.0,108910.0,0.04661]
[1761827429182,0.33422042,108920.0,108910.0,0.04661]
[1761827429377,0.69402042,108920.0,108910.0,0.001]
[1761827429681,1.05056084,108920.0,108910.0,0.001]
[1761827429990,0.84123042,108920.0,108910.0,0.001]
[1761827430180,0.04389,108900.0,108890.0,0.001]
[1761827430382,0.26322042,108900.0,108890.0,0.001]
[1761827430578,0.26322042,108900.0,108890.0,0.3618]
[1761827430780,0.26322042,108900.0,108890.0,0.38485]
[1761827430983,0.04389,108900.0,108890.0,0.41141]
[1761827431178,0.89809042,108910.0,108890.0,0.41141]
[1761827431378,0.89809042,108910.0,108890.0,0.41041]
[1761827431379,0.04389,108900.0,108890.0,0.41041]
[1761827431575,0.62402042,108900.0,108890.0,0.004]
[1761827431778,0.72399102,108900.0,108890.0,0.004]
[1761827432781,0.72399102,108900.0,108880.0,0.03703]
[1761827432782,0.04389,108890.0,108880.0,0.03703]
[1761827432988,0.26322042,108890.0,108870.0,0.3608]
[1761827433291,0.21933042,108890.0,108870.0,0.40641]
[1761827433481,0.21933042,108890.0,108880.0,0.02305]
[1761827433677,0.01,108890.0,108880.0,0.42039]
[1761827433876,0.002,108900.0,108890.0,0.04561]
[1761827433877,0.003,108900.0,108890.0,0.04561]
[1761827434084,0.003,108900.0,108890.0,0.40641]
[1761827434287,0.003,108900.0,108890.0,0.4982532]
[1761827434591,0.003,108900.0,108890.0,1.30758362]
[1761827434886,0.25190042,108910.0,108900.0,0.0133]
[1761827435084,0.25190042,108910.0,108890.0,0.3608]
[1761827435085,0.04257,108900.0,108890.0,0.38201]
[1761827435581,0.41273162,108900.0,108890.0,0.38201]
[1761827435788,0.04257,108890.0,108880.0,0.37478]
[1761827436084,0.02,108890.0,108880.0,0.41865]
[1761827436284,0.35153,108900.0,108890.0,0.04387]
[1761827436486,0.35153,108900.0,108880.0,0.37478]
[1761827436487,0.02125,108890.0,108880.0,0.37478]
[1761827436679,0.06257,108890.0,108880.0,0.41865]
[1761827437179,0.68044162,108900.0,108890.0,0.04387]
[1761827437381,0.022,108900.0,108890.0,0.04387]
[1761827437689,0.002,108900.0,108890.0,0.04387]
[1761827437984,0.3608,108910.0,108900.0,0.05717]
[1761827438191,0.3608,108930.0,108920.0,0.03451]
[1761827438397,1.51180769,108930.0,108910.0,0.3608]
[1761827438576,0.02125,108920.0,108910.0,0.3608]
[1761827438891,0.07,108920.0,108910.0,0.40467]
[1761827439391,0.71096162,108940.0,108920.0,0.0133]
[1761827439590,0.4,108940.0,108920.0,0.41797]
[1761827439788,0.08125,108940.0,108920.0,0.3741]
[1761827439989,0.04257,108930.0,108920.0,0.3741]
[1761827440296,0.81096162,108930.0,108900.0,0.41797]
[1761827440486,0.32812,108920.0,108910.0,0.40467]
[1761827440687,0.01,108920.0,108910.0,0.40467]
[1761827441290,0.32824,108930.0,108920.0,0.05717]
[1761827441482,0.43949,108930.0,108920.0,0.05717]
[1761827441677,0.46281,108930.0,108920.0,0.05817]
[1761827442086,1.17377162,108930.0,108920.0,0.001]
[1761827442288,1.87650222,108930.0,108920.0,0.001]
[1761827442687,2.06650222,108930.0,108920.0,0.001]
[1761827442887,0.04257,108910.0,108900.0,0.0133]
[1761827443095,0.02025,108900.0,108890.0,0.3853537]
[1761827443389,0.0912,108900.0,108890.0,0.3608]
[1761827443582,0.44136162,108900.0,108890.0,0.3608]
[1761827443786,0.0912,108900.0,108890.0,0.3608]
[1761827444182,0.0912,108900.0,108890.0,0.38201]
[1761827444687,0.0922,108900.0,108890.0,0.38201]
[1761827444890,0.0922,108900.0,108890.0,0.4065637]
[1761827445281,0.42048,108900.0,108890.0,0.4065637]
[1761827445479,0.32928,108900.0,108890.0,0.4292237]
[1761827445686,0.003,108900.0,108890.0,0.4292237]
[1761827447495,0.003,108900.0,108890.0,0.46195863]
[1761827448094,0.003,108900.0,108890.0,0.4292237]
[1761827448294,0.003,108900.0,108890.0,0.43740493]
[1761827449783,0.013,108900.0,108890.0,0.43740493]
[1761827449987,0.003,108900.0,108890.0,0.43740493]
[1761827453298,0.003,108900.0,108890.0,0.4539764]
[1761827453702,0.0649,108900.0,108890.0,0.4539764]
[1761827453905,0.0649,108900.0,108890.0,0.43763371]
[1761827454407,0.04395,108900.0,108890.0,0.40467]
[1761827454591,0.023,108900.0,108890.0,0.40467]
[1761827454790,0.04395,108900.0,108890.0,0.4539764]
[1761827454990,0.023,108900.0,108890.0,0.4539764]
[1761827456199,0.003,108900.0,108890.0,0.4539764]
[1761827456601,0.003,108900.0,108890.0,0.4567364]
[1761827456793,0.003,108900.0,108890.0,0.40743]
[1761827457299,0.003,108900.0,108890.0,0.4992731]
[1761827457494,0.32804,108920.0,108910.0,0.04387]
[1761827457694,0.02,108920.0,108910.0,0.43767028]
[1761827457895,0.37111162,108940.0,108930.0,0.04387]
[1761827458106,0.54095,108940.0,108930.0,0.06861817]
[1761827458597,1.38562162,108940.0,108930.0,0.02474817]
[1761827458794,1.39007162,108940.0,108920.0,0.02474817]
[1761827458998,0.75562162,108930.0,108920.0,0.02474817]
[1761827459198,1.07562162,108930.0,108920.0,0.02474817]
[1761827459407,1.07286162,108930.0,108920.0,0.08191817]
[1761827459903,0.79562162,108930.0,108920.0,0.02474817]
[1761827460102,1.16283222,108930.0,108920.0,0.02474817]
[1761827460290,1.42283222,108930.0,108920.0,0.02474817]
[1761827460495,1.43183222,108930.0,108920.0,0.02474817]
[1761827461203,1.30186162,108930.0,108920.0,0.02474817]
[1761827461404,1.30586162,108930.0,108920.0,0.02474817]
[1761827461599,1.30586162,108930.0,108920.0,0.08191817]
[1761827461794,0.8257,108930.0,108920.0,0.08191817]
[1761827462098,0.099,108930.0,108920.0,0.44271817]
[1761827462303,0.009,108930.0,108920.0,0.45096756]
[1761827463000,0.009,108930.0,108920.0,0.46747042]
[1761827463203,0.72862,108960.0,108950.0,0.04387]
[1761827463405,1.32862,108960.0,108950.0,0.04387]
[1761827463602,0.0399,108950.0,108940.0,0.02473357]
[1761827463804,1.01086162,108950.0,108940.0,0.02473357]
[1761827464205,1.30086162,108950.0,108940.0,0.02473357]
[1761827464410,1.35086162,108950.0,108940.0,0.02473357]
[1761827464593,1.35086162,108950.0,108930.0,0.02473357]
[1761827464594,0.0399,108940.0,108930.0,0.02473357]
[1761827464798,0.0399,108930.0,108920.0,0.07101166]
[1761827464998,0.0399,108930.0,108920.0,0.02473357]
[1761827464999,0.57006162,108930.0,108920.0,0.02473357]
[1761827465199,0.73006162,108930.0,108920.0,0.02473357]
[1761827465395,0.72906162,108930.0,108920.0,0.02473357]
[1761827465805,0.68868,108940.0,108920.0,0.08221357]
[1761827465999,0.81658,108940.0,108930.0,0.06825357]
[1761827466199,1.10658,108940.0,108930.0,0.02473357]
[1761827466397,0.0379,108930.0,108920.0,0.02473357]
[1761827466601,0.91886162,108930.0,108920.0,0.02473357]
[1761827466996,0.0379,108920.0,108910.0,0.05771166]
[1761827467200,0.0379,108920.0,108910.0,0.04682357]
[1761827467201,0.1079,108920.0,108910.0,0.04682357]
[1761827467401,0.03895,108920.0,108910.0,0.06825357]
[1761827467910,0.0579,108920.0,108910.0,0.06825357]
[1761827468105,0.52803222,108920.0,108910.0,0.02473357]
[1761827468310,1.51883222,108920.0,108910.0,0.02473357]
[1761827468710,1.75830222,108920.0,108910.0,0.02473357]
[1761827468912,1.75830222,108920.0,108900.0,0.02473357]
[1761827468913,0.0379,108910.0,108900.0,0.02473357]
[1761827469113,0.88886162,108910.0,108900.0,0.02473357]
[1761827469415,0.86886162,108910.0,108900.0,0.02473357]
[1761827469714,1.19674162,108910.0,108900.0,0.02473357]
[1761827470012,1.29671222,108910.0,108900.0,0.02473357]
[1761827470611,0.0379,108900.0,108890.0,0.02473357]
[1761827470813,0.4287,108900.0,108890.0,0.02209]
[1761827471114,0.4287,108900.0,108890.0,0.04352]
[1761827471610,0.4287,108900.0,108890.0,0.02209]
[1761827472010,0.0379,108890.0,108880.0,0.08223357]
[1761827472219,0.0559,108890.0,108880.0,0.08223357]
[1761827472519,0.93686162,108890.0,108880.0,0.02473357]
[1761827472726,0.91686162,108890.0,108880.0,0.02473357]
[1761827472907,0.0339,108880.0,108870.0,0.04682357]
[1761827473108,1.25274162,108880.0,108870.0,0.02473357]
[1761827473317,0.0339,108870.0,108860.0,0.02473357]
[1761827473618,0.58403222,108870.0,108860.0,0.02473357]
[1761827473802,0.2338706,108870.0,108860.0,0.02473357]
[1761827474206,0.1339,108870.0,108860.0,0.08221357]
[1761827474610,0.1139,108870.0,108860.0,0.05748]
[1761827474911,0.1329,108870.0,108860.0,0.01396]
[1761827475117,0.0319,108860.0,108850.0,0.02473357]
[1761827475313,0.0319,108850.0,108840.0,0.37484905]
[1761827475510,0.39206162,108850.0,108840.0,0.37484905]
[1761827475705,0.0609,108850.0,108840.0,0.41748905]
[1761827476506,0.0589,108850.0,108840.0,0.41748905]
[1761827476709,1.09778162,108850.0,108840.0,8.905e-05]
[1761827476914,2.22778162,108850.0,108840.0,8.905e-05]
[1761827477118,1.72775222,108850.0,108840.0,8.905e-05]
[1761827477818,0.0259,108830.0,108820.0,0.37476]
[1761827478011,0.44606162,108830.0,108820.0,0.37476]
[1761827478417,0.44606162,108830.0,108820.0,0.39623]
[1761827478919,0.02009831,108830.0,108820.0,0.4174]
[1761827479119,0.04599831,108830.0,108820.0,0.4184]
[1761827479715,0.06599831,108830.0,108820.0,0.4184]
[1761827479925,0.06599831,108830.0,108820.0,0.4214]
[1761827480421,0.04599831,108830.0,108820.0,0.4214]
[1761827480723,9.831e-05,108830.0,108820.0,0.77156162]
[1761827480917,0.3867,108860.0,108850.0,0.02117]
[1761827481121,0.0259,108840.0,108830.0,0.02147]
[1761827481313,0.0259,108830.0,108820.0,0.4214]
[1761827481513,0.0659,108830.0,108820.0,0.4214]
[1761827481916,0.0659,108830.0,108820.0,0.4184]
[1761827482217,0.41606162,108830.0,108820.0,0.0566]
[1761827482419,1.37486162,108830.0,108800.0,0.39942144]
[1761827482621,0.37606162,108810.0,108800.0,0.0566]
[1761827482823,0.0239,108800.0,108790.0,0.40344]
[1761827483027,0.3719,108800.0,108790.0,0.40344]
[1761827483216,0.3919,108800.0,108790.0,0.40344]
[1761827483914,0.4718706,108800.0,108790.0,0.40344]
[1761827484113,0.4708706,108800.0,108790.0,0.40344]
[1761827484326,0.4908706,108800.0,108790.0,0.40344]
[1761827485020,0.4479706,108800.0,108790.0,0.40544]
[1761827485219,0.3879,108800.0,108790.0,0.40544]
[1761827485419,0.3679,108800.0,108790.0,0.40544]
[1761827485627,0.35795,108800.0,108790.0,0.40544]
[1761827485828,0.348,108800.0,108790.0,0.40544]
[1761827487031,0.3879,108800.0,108790.0,0.40544]
[1761827487222,0.3679,108800.0,108790.0,0.41144]
[1761827487620,0.35795,108800.0,108790.0,0.41144]
[1761827487823,0.35795,108800.0,108790.0,0.40544]
[1761827488032,0.348,108800.0,108790.0,0.40944]
[1761827488318,0.3879,108800.0,108790.0,0.40944]
[1761827488523,0.35795,108800.0,108790.0,0.40944]
[1761827488730,0.3879,108800.0,108790.0,0.40944]
[1761827489420,0.3679,108800.0,108790.0,0.40944]
[1761827490028,0.3879,108800.0,108790.0,0.40944]
[1761827490232,0.35795,108800.0,108790.0,0.40944]
[1761827490720,0.3879,108800.0,108790.0,0.40944]
[1761827491524,0.73806162,108800.0,108790.0,0.40944]
[1761827491722,1.38886162,108800.0,108790.0,0.006]
[1761827492028,1.46883222,108800.0,108790.0,0.006]
[1761827492730,1.69506222,108800.0,108790.0,0.006]
[1761827493029,1.69230222,108800.0,108790.0,0.006]
[1761827493226,1.69506222,108800.0,108790.0,0.006]
[1761827493530,1.87506222,108800.0,108790.0,0.006]
[1761827494227,1.86883222,108800.0,108790.0,0.006]
[1761827494443,1.0586706,108800.0,108790.0,0.04864]
[1761827494642,0.4778706,108800.0,108790.0,0.04864]
[1761827494834,0.3779,108800.0,108790.0,0.04864]
[1761827495033,0.72806162,108800.0,108790.0,0.04864]
[1761827495842,1.08886162,108800.0,108790.0,0.04864]
[1761827496845,0.3579,108800.0,108790.0,0.04864]
[1761827497037,0.4479206,108800.0,108790.0,0.04864]
[1761827497242,0.72806162,108800.0,108790.0,0.04864]
[1761827497454,1.15800982,108800.0,108790.0,0.006]
[1761827497749,1.30800982,108800.0,108790.0,0.006]
[1761827498239,0.9487,108800.0,108790.0,0.05017]
[1761827498446,1.25798042,108800.0,108790.0,0.05017]
[1761827498649,1.39798042,108800.0,108790.0,0.006]
[1761827498839,1.23798042,108800.0,108790.0,0.05017]
[1761827499037,0.54812,108800.0,108790.0,0.41097]
[1761827499247,0.22,108800.0,108790.0,0.41097]
[1761827499439,0.59000982,108820.0,108810.0,0.04417]
[1761827499638,1.29812982,108820.0,108810.0,0.04417]
[1761827499840,0.0199,108810.0,108800.0,0.05717]
[1761827500046,0.60920982,108810.0,108800.0,0.05717]
[1761827500551,0.60820982,108810.0,108800.0,0.05717]
[1761827501148,0.96900982,108810.0,108800.0,0.05717]
[1761827501448,0.32812,108820.0,108810.0,0.04417]
[1761827501652,1.02412982,108820.0,108810.0,0.04417]
[1761827501860,0.0159,108810.0,108800.0,0.06078144]
[1761827502039,0.81010982,108810.0,108800.0,0.001]
[1761827502236,0.82600982,108810.0,108800.0,0.001]
[1761827502653,0.82600982,108810.0,108800.0,0.003]
[1761827503147,1.05598042,108810.0,108800.0,0.003]
[1761827503339,1.07805024,108810.0,108800.0,0.003]
[1761827503653,1.27874042,108810.0,108800.0,0.003]
[1761827503950,1.27598042,108810.0,108800.0,0.003]
[1761827505052,1.27598042,108810.0,108800.0,0.002]
[1761827505944,1.01332982,108810.0,108800.0,0.08483144]
[1761827506147,0.38812,108810.0,108800.0,1.04563144]
[1761827506345,0.10780422,108810.0,108800.0,0.67974696]
[1761827506649,0.10780422,108810.0,108800.0,0.47043714]
[1761827507038,0.35301404,108810.0,108800.0,0.47043714]
[1761827507245,0.33711404,108810.0,108800.0,0.47043714]
[1761827507445,0.15575422,108810.0,108800.0,0.47043714]
[1761827507646,0.13575422,108810.0,108800.0,0.47043714]
[1761827508047,0.34506404,108810.0,108800.0,0.45395278]
[1761827508247,0.12780422,108810.0,108800.0,0.45395278]
[1761827508443,0.50450422,108810.0,108800.0,0.09315278]
[1761827508642,0.14370422,108810.0,108800.0,0.09315278]
[1761827508848,0.12780422,108810.0,108800.0,0.45395278]
[1761827509249,0.10780422,108810.0,108800.0,0.47319714]
[1761827509438,0.36875,108840.0,108830.0,0.04417]
[1761827509646,0.67603,108840.0,108830.0,0.42971005]
[1761827510052,0.3608,108850.0,108840.0,0.05717]
[1761827510248,0.37809052,108860.0,108850.0,0.02312]
[1761827510461,0.63604052,108860.0,108850.0,0.04417]
[1761827510751,0.00795,108850.0,108840.0,0.06084775]
[1761827510953,0.61600982,108850.0,108840.0,0.08189775]
[1761827511148,0.84600982,108850.0,108840.0,0.08189775]
[1761827511348,0.48520982,108850.0,108840.0,0.08189775]
[1761827511748,0.84600982,108850.0,108840.0,0.08189775]
[1761827513158,0.45520982,108850.0,108840.0,0.08189775]
[1761827513360,0.45520982,108850.0,108840.0,0.44269775]
[1761827513361,0.212,108850.0,108840.0,0.44269775]
[1761827513649,0.212,108850.0,108840.0,0.75491156]
[1761827513650,0.006,108850.0,108840.0,0.75491156]
[1761827513860,0.36948,108890.0,108880.0,0.02105]
[1761827514048,1.28678982,108890.0,108880.0,0.05717]
[1761827514247,1.28678982,108890.0,108860.0,0.39850048]
[1761827514456,0.58746982,108880.0,108870.0,0.04417]
[1761827514658,0.82746982,108880.0,108870.0,0.04417]
[1761827515348,0.82646982,108880.0,108870.0,0.04417]
[1761827515548,0.81778982,108880.0,108870.0,0.04417]
[1761827515860,0.37191491,108880.0,108870.0,0.40497]
[1761827516157,0.3756279,108880.0,108870.0,0.40597]
[1761827516355,0.60229772,108880.0,108870.0,0.04517]
[1761827516563,1.17660754,108880.0,108870.0,0.001]
[1761827516757,0.01736,108860.0,108850.0,0.04417]
[1761827516945,0.01736,108850.0,108840.0,0.44267048]
[1761827517151,0.66746982,108850.0,108840.0,0.013]
[1761827517462,0.01736,108840.0,108830.0,0.42967048]
[1761827517653,0.29666982,108840.0,108830.0,0.42967048]
[1761827518162,0.26666982,108840.0,108830.0,0.40497]
[1761827518459,0.29666982,108840.0,108830.0,0.40497]
[1761827518655,0.02,108840.0,108830.0,0.40497]
[1761827518853,0.70912,108860.0,108850.0,0.02312]
[1761827519049,1.37840042,108860.0,108850.0,0.04417]